fUSD/lending_fUSD_20260218
["ID","MTS","AMOUNT","RATE_DAILY","PERIOD"]
[405926580,1771419050621,-25000.0,0.000179,3]
[405926581,1771419050631,-5008.1800114,0.000179,3]
[405926582,1771419050640,-150.0,0.000179,2]
[405926583,1771419050650,-400.0,0.000179,6]
[405926584,1771419050659,-2251.56583335,0.000179,2]
[405926585,1771419050668,-25635.78322112,0.000179,2]
[405926586,1771419050677,-2887.40769395,0.000179,2]
[405926587,1771419050686,-500.0,0.000179,2]
[405926588,1771419050696,-500.0,0.000179,2]
[405926589,1771419050705,-500.0,0.000179,2]
[405926590,1771419050715,-500.0,0.000179,2]
[405926591,1771419050724,-500.0,0.000179,2]
[405926592,1771419050734,-500.0,0.000179,2]
[405926593,1771419050743,-500.0,0.000179,2]
[405926594,1771419050752,-500.0,0.000179,2]
[405926595,1771419050762,-500.0,0.000179,2]
[405926596,1771419050772,-500.0,0.000179,2]
[405926597,1771419050782,-500.0,0.000179,2]
[405926598,1771419050791,-500.0,0.000179,2]
[405926599,1771419050801,-500.0,0.000179,2]
[405926600,1771419050810,-500.0,0.000179,2]
[405926601,1771419050820,-500.0,0.000179,2]
[405926602,1771419050830,-500.0,0.000179,2]
[405926603,1771419050839,-500.0,0.000179,2]
[405926604,1771419050848,-500.0,0.000179,2]
[405926605,1771419050858,-500.0,0.000179,2]
[405926606,1771419050868,-500.0,0.000179,2]
[405926607,1771419050877,-500.0,0.000179,2]
[405926608,1771419050886,-500.0,0.000179,2]
[405926609,1771419050896,-500.0,0.000179,2]
[405926610,1771419050905,-500.0,0.000179,2]
[405926611,1771419050915,-500.0,0.000179,2]
[405926612,1771419050924,-500.0,0.000179,2]
[405926613,1771419050938,-500.0,0.000179,2]
[405926614,1771419050948,-500.0,0.000179,2]
[405926615,1771419050957,-500.0,0.000179,2]
[405926616,1771419050967,-500.0,0.000179,2]
[405926617,1771419050977,-500.0,0.000179,2]
[405926618,1771419050987,-500.0,0.000179,2]
[405926619,1771419050996,-500.0,0.000179,2]
[405926620,1771419051007,-500.0,0.000179,2]
[405926621,1771419051016,-500.0,0.000179,2]
[405926622,1771419051026,-500.0,0.000179,2]
[405926623,1771419051036,-500.0,0.000179,2]
[405926624,1771419051045,-500.0,0.000179,2]
[405926625,1771419051055,-500.0,0.000179,2]
[405926626,1771419051064,-500.0,0.000179,2]
[405926627,1771419051073,-500.0,0.000179,2]
[405926628,1771419051082,-500.0,0.000179,2]
[405926629,1771419051091,-500.0,0.000179,2]
[405926630,1771419051100,-500.0,0.000179,2]
[405926631,1771419051109,-500.0,0.000179,2]
[405926632,1771419051119,-500.0,0.000179,2]
[405926633,1771419051128,-500.0,0.000179,2]
[405926634,1771419051138,-500.0,0.000179,2]
[405926635,1771419051147,-472.68340978,0.000179,2]
[405926636,1771419051156,-500.0,0.00017918,2]
[405926637,1771419051165,-507.0,0.00017931,3]
[405926638,1771419051175,-500.0,0.0001797,2]
[405926639,1771419051184,-500.0,0.0001797,2]
[405926640,1771419051193,-1000.0,0.0001797,2]
[405926641,1771419051202,-500.0,0.0001797,2]
[405926642,1771419051211,-500.0,0.0001797,2]
[405926643,1771419051220,-1000.0,0.0001797,2]
[405926644,1771419051229,-500.0,0.0001797,2]
[405926645,1771419051238,-1000.0,0.0001797,2]
[405926646,1771419051247,-900.0,0.0001797,2]
[405926647,1771419051256,-1000.0,0.0001797,2]
[405926648,1771419051265,-1000.0,0.0001797,2]
[405926649,1771419051274,-1000.0,0.0001797,2]
[405926650,1771419051284,-1602.42010233,0.0001797,2]
[405926651,1771419051293,-500.0,0.00017972,2]
[405926652,1771419051302,-1889.54156641,0.00017989,2]
[405926653,1771419051311,-155.0,0.00017999,2]
[405926654,1771419051320,-300.0,0.00017999,2]
[405926655,1771419051331,-300.0,0.00017999,2]
[405926656,1771419051340,-666.0,0.00017999,2]
[405926657,1771419051349,-300.0,0.00017999,2]
[405926658,1771419051358,-162.380719,0.00017999,3]
[405926659,1771419051367,-168.3888056,0.00017999,3]
[405926660,1771419051377,-235.89235816,0.00017999,3]
[405926661,1771419051386,-209.40437684,0.00017999,3]
[405926662,1771419051399,-217.15233878,0.00017999,3]
[405926663,1771419051409,-151.0,0.00017999,3]
[405926664,1771419051418,-225.18697532,0.00017999,3]
[405926665,1771419051428,-151.0,0.00017999,3]
[405926666,1771419051444,-233.51889341,0.00017999,3]
[405926667,1771419051460,-365.89754822,0.00017999,3]
[405926668,1771419051479,-500.0,0.00017999,3]
[405926669,1771419051492,-500.0,0.00017999,3]
[405926670,1771419051512,-500.0,0.00017999,3]
[405926671,1771419051527,-200.0,0.00017999,3]
[405926672,1771419051537,-500.0,0.00017999,3]
[405926673,1771419051547,-500.0,0.00017999,3]
[405926674,1771419051557,-200.0,0.00017999,3]
[405926675,1771419051566,-500.0,0.00017999,3]
[405926676,1771419051576,-500.0,0.00017999,3]
[405926677,1771419051585,-500.0,0.00017999,3]
[405926678,1771419051595,-200.0,0.00017999,3]
[405926679,1771419051604,-500.0,0.00017999,3]
[405926680,1771419051614,-500.0,0.00017999,3]
[405926681,1771419051623,-200.0,0.00017999,3]
[405926682,1771419051632,-500.0,0.00017999,3]
[405926683,1771419051642,-500.0,0.00017999,3]
[405926684,1771419051651,-245.2765902,0.00017999,3]
[405926685,1771419051660,-500.0,0.00017999,3]
[405926686,1771419051670,-500.0,0.00017999,3]
[405926687,1771419051679,-500.0,0.00017999,3]
[405926688,1771419051689,-500.0,0.00017999,3]
[405926689,1771419051698,-151.0,0.00017999,3]
[405926690,1771419051707,-500.0,0.00017999,3]
[405926691,1771419051716,-500.0,0.00017999,3]
[405926692,1771419051726,-151.0,0.00017999,3]
[405926693,1771419051736,-500.0,0.00017999,3]
[405926694,1771419051745,-500.0,0.00017999,3]
[405926695,1771419051755,-151.0,0.00017999,3]
[405926696,1771419051764,-500.0,0.00017999,3]
[405926697,1771419051775,-578.20924308,0.00017999,3]
[405926698,1771419051786,-151.0,0.00017999,3]
[405926699,1771419051796,-500.0,0.00017999,3]
[405926700,1771419051806,-599.60298507,0.00017999,3]
[405926701,1771419051816,-151.0,0.00017999,3]
[405926702,1771419051825,-621.78829552,0.00017999,3]
[405926703,1771419051835,-151.0,0.00017999,3]
[405926704,1771419051844,-644.79446246,0.00017999,3]
[405926705,1771419051854,-151.0,0.00017999,3]
[405926706,1771419051864,-668.65185757,0.00017999,3]
[405926707,1771419051873,-151.0,0.00017999,3]
[405926708,1771419051882,-211.77135846,0.00017999,3]
[405926709,1771419051892,-151.0,0.00017999,3]
[405926710,1771419051902,-721.12765535,0.00017999,3]
[405926711,1771419051912,-747.8093786,0.00017999,3]
[405926712,1771419051923,-775.47832561,0.00017999,3]
[405926713,1771419051936,-872.26879673,0.00017999,3]
[405926714,1771419051946,-693.3919763,0.00017999,3]
[405926715,1771419051955,-719.04747942,0.00017999,3]
[405926716,1771419051965,-745.65223616,0.00017999,3]
[405926717,1771419051975,-773.2413689,0.00017999,3]
[405926718,1771419051984,-801.85129955,0.00017999,3]
[405926719,1771419051994,-831.51979763,0.00017999,3]
[405926720,1771419052003,-862.28603014,0.00017999,3]
[405926721,1771419052012,-894.19061326,0.00017999,3]
[405926722,1771419052022,-174.61919141,0.00017999,3]
[405926723,1771419052031,-927.27566595,0.00017999,3]
[405926724,1771419052040,-181.08010149,0.00017999,3]
[405926725,1771419052050,-961.58486559,0.00017999,3]
[405926726,1771419052058,-187.78006525,0.00017999,3]
[405926727,1771419052068,-997.16350561,0.00017999,3]
[405926728,1771419052079,-194.72792766,0.00017999,3]
[405926729,1771419052088,-201.93286099,0.00017999,3]
[405926730,1771419052097,-209.40437684,0.00017999,3]
[405926731,1771419052106,-217.15233878,0.00017999,3]
[405926732,1771419052115,-225.18697532,0.00017999,3]
[405926733,1771419052124,-233.51889341,0.00017999,3]
[405926734,1771419052133,-504.510834,0.00017999,3]
[405926735,1771419052142,-242.15909246,0.00017999,3]
[405926736,1771419052150,-251.11897888,0.00017999,3]
[405926737,1771419052159,-183.30982713,0.00017999,2]
[405926738,1771419052168,-260.4103811,0.00017999,3]
[405926739,1771419052177,-270.0455652,0.00017999,3]
[405926740,1771419052187,-280.03725112,0.00017999,3]
[405926741,1771419052196,-290.39862941,0.00017999,3]
[405926742,1771419052205,-301.1433787,0.00017999,3]
[405926743,1771419052214,-666.0,0.00017999,2]
[405926744,1771419052223,-294.37058652,0.00017999,2]
[405926745,1771419052232,-437934.59996449,0.00018,2]
[405926746,1771419052582,-500.0,8.273e-05,2]
[405926747,1771419052592,-500.0,8.273e-05,2]
[405926748,1771419052601,-500.0,8.273e-05,2]
[405926749,1771419052610,-762.05,0.00013698,2]
[405926750,1771419052620,-1873.36251223,0.00018,2]
[405926751,1771419052639,-500.0,8.273e-05,2]
[405926752,1771419052648,-597.05524,0.00018,2]
[405926753,1771419052658,-711.6560396,0.00018,2]
[405926754,1771419052816,-500.0,8.273e-05,2]
[405926755,1771419052826,-500.0,8.273e-05,2]
[405926756,1771419052835,-500.0,8.273e-05,2]
[405926757,1771419052844,-500.0,8.273e-05,2]
[405926758,1771419052854,-500.0,8.273e-05,2]
[405926759,1771419052863,-500.0,8.273e-05,2]
[405926760,1771419052872,-500.0,8.273e-05,2]
[405926761,1771419052881,-762.05,0.00013698,2]
[405926762,1771419052890,-762.05,0.00013698,2]
[405926763,1771419052899,-762.05,0.00013698,2]
[405926764,1771419052908,-762.05,0.00013698,2]
[405926765,1771419052918,-762.05,0.00013698,2]
[405926766,1771419052927,-762.05,0.00013698,2]
[405926767,1771419052938,-762.05,0.00013698,2]
[405926768,1771419052947,-285.30109483,0.00013699,2]
[405926769,1771419052956,-8472642.53080621,0.00018,2]
[405926770,1771419052973,-757.06414575,0.00018,2]
[405926771,1771419052984,-3427.09355139,0.00018,2]
[405926772,1771419053005,-762.05,0.00013698,2]
[405926773,1771419053015,-2218937.36923175,0.00018,2]
[405926774,1771419053027,-2512.3783548,0.00018,2]
[405926775,1771419053044,-2452.0,0.00015652,2]
[405926776,1771419053054,-112945.09045331,0.00018,2]
[405926777,1771419053071,-762.05,0.00013698,2]
[405926778,1771419053080,-154338.62098112,0.00018,2]
[405926779,1771419053285,-185.59578519,8.283e-05,2]
[405926780,1771419053294,-70.32218771,0.00011099,2]
[405926781,1771419053367,-990.2,0.00011099,2]
[405926782,1771419053381,-876.15842331,0.00011099,2]
[405926783,1771419497147,-500.0,8.008e-05,2]
[405926784,1771419497168,-890.836,8.108e-05,2]
[405926785,1771419497188,-180.591,8.108e-05,2]
[405926786,1771419497208,-150.0,8.172e-05,2]
[405926787,1771419497229,-300.0,8.172e-05,2]
[405926788,1771419497253,-300.0,8.172e-05,2]
[405926789,1771419497275,-47678.573,8.173e-05,2]
[405926790,1771419596682,-500.0,0.00044514,120]
[405926791,1771419596706,-10688.0,0.00044514,120]
[405926792,1771419596730,-1008.3159954,0.00044514,30]
[405926793,1771419596754,-176.58511,0.00044514,60]
[405926794,1771419596776,-176.58511,0.00044514,60]
[405926795,1771419596799,-176.58511,0.00044514,60]
[405926796,1771419596821,-1600.02,0.00044514,120]
[405926797,1771419596844,-449.0,0.00044514,30]
[405926798,1771419596868,-449.0,0.00044514,120]
[405926799,1771419596896,-1000.0,0.00044514,30]
[405926800,1771419596920,-1000.0,0.00044514,60]
[405926801,1771419596942,-1000.0,0.00044514,30]
[405926802,1771419596964,-1000.0,0.00044514,30]
[405926803,1771419596987,-1000.0,0.00044514,60]
[405926804,1771419597010,-1000.0,0.00044514,60]
[405926805,1771419597274,-1000.0,0.00044514,60]
[405926806,1771419597297,-1000.0,0.00044514,60]
[405926807,1771419597320,-1000.0,0.00044514,120]
[405926808,1771419597343,-1000.0,0.00044514,60]
[405926809,1771419597368,-1000.0,0.00044514,60]
[405926810,1771419597392,-1000.0,0.00044514,30]
[405926811,1771419597416,-1000.0,0.00044514,30]
[405926812,1771419597438,-1000.0,0.00044514,30]
[405926813,1771419597460,-1000.0,0.00044514,30]
[405926814,1771419597485,-1000.0,0.00044514,120]
[405926815,1771419597508,-1000.0,0.00044514,60]
[405926816,1771419597530,-1000.0,0.00044514,30]
[405926817,1771419597552,-1000.0,0.00044514,60]
[405926818,1771419597575,-1000.0,0.00044514,60]
[405926819,1771419597598,-800.0,0.00044514,31]
[405926820,1771419597620,-1487.0,0.00044514,30]
[405926821,1771419597644,-1487.0,0.00044514,120]
[405926822,1771419597671,-1441.02,0.00044514,120]
[405926823,1771419597696,-800.0,0.00044514,31]
[405926824,1771419597719,-800.0,0.00044514,31]
[405926825,1771419597741,-800.0,0.00044514,31]
[405926826,1771419597764,-800.0,0.00044514,31]
[405926827,1771419597787,-800.0,0.00044514,31]
[405926828,1771419597815,-800.0,0.00044514,31]
[405926829,1771419597839,-800.0,0.00044514,31]
[405926830,1771419597861,-800.0,0.00044514,31]
[405926831,1771419597884,-800.0,0.00044514,31]
[405926832,1771419597908,-800.0,0.00044514,31]
[405926833,1771419597930,-800.0,0.00044514,31]
[405926834,1771419597953,-800.0,0.00044514,31]
[405926835,1771419597975,-800.0,0.00044514,31]
[405926836,1771419597998,-800.0,0.00044514,31]
[405926837,1771419598021,-800.0,0.00044514,31]
[405926838,1771419598043,-800.0,0.00044514,31]
[405926839,1771419598067,-800.0,0.00044514,31]
[405926840,1771419598090,-800.0,0.00044514,31]
[405926841,1771419598115,-800.0,0.00044514,31]
[405926842,1771419598151,-800.0,0.00044514,31]
[405926843,1771419598176,-800.0,0.00044514,31]
[405926844,1771419598200,-800.0,0.00044514,31]
[405926845,1771419598224,-800.0,0.00044514,31]
[405926846,1771419598247,-800.0,0.00044514,31]
[405926847,1771419598270,-800.0,0.00044514,31]
[405926848,1771419598293,-587.9991,0.00044514,60]
[405926849,1771419598316,-587.9991,0.00044514,60]
[405926850,1771419598339,-587.9991,0.00044514,60]
[405926851,1771419598362,-587.9991,0.00044514,60]
[405926852,1771419598386,-587.9991,0.00044514,60]
[405926853,1771419598412,-1622.999998,0.00044514,30]
[405926854,1771419598435,-2940.91450593,0.00044514,30]
[405926855,1771419598460,-11892.96,0.00044514,30]
[405926856,1771419598484,-940.35682094,0.00044514,30]
[405926857,1771419598510,-793.35926926,0.00044514,30]
[405926858,1771419598532,-885.04891307,0.00044514,120]
[405926859,1771419598554,-1042.42863509,0.00044514,120]
[405926860,1771419598576,-920.86605553,0.00044514,30]
[405926861,1771419598598,-929.86597317,0.00044514,30]
[405926862,1771419598621,-1001.59753541,0.00044514,30]
[405926863,1771419598644,-1035.03311721,0.00044514,30]
[405926864,1771419598666,-775.05659992,0.00044514,120]
[405926865,1771419598688,-1089.49534508,0.00044514,30]
[405926866,1771419598711,-1178.96737807,0.00044514,120]
[405926867,1771419598733,-997.0,0.00044514,30]
[405926868,1771419598755,-793.95615065,0.00044514,120]
[405926869,1771419598777,-951.39844243,0.00044514,30]
[405926870,1771419598799,-1099.90342161,0.00044514,120]
[405926871,1771419598821,-607.66037388,0.00044514,120]
[405926872,1771419598842,-756.0,0.00044514,120]
[405926873,1771419598865,-1077.48216471,0.00044514,120]
[405926874,1771419598887,-841.50323101,0.00044514,120]
[405926875,1771419598910,-1116.31426034,0.00044514,30]
[405926876,1771419598932,-1636.49546026,0.00044514,120]
[405926877,1771419598954,-798.79399264,0.00044514,120]
[405926878,1771419598975,-658.0,0.00044514,120]
[405926879,1771419598998,-846.18872748,0.00044514,30]
[405926880,1771419599020,-1686.80242133,0.00044514,120]
[405926881,1771419599043,-1000.0,0.00044514,30]
[405926882,1771419599068,-1000.0,0.00044514,120]
[405926883,1771419599091,-922.0,0.00044514,120]
[405926884,1771419599118,-244.0,0.00044514,30]
[405926885,1771419599141,-212.02,0.00044514,120]
[405926886,1771419599164,-234.0,0.00044514,30]
[405926887,1771419599187,-228.98057726,0.00044514,120]
[405926888,1771419599209,-200.0,0.00044514,120]
[405926889,1771419599232,-178.37534,0.00044514,60]
[405926890,1771419599255,-475.26533,0.00044514,60]
[405926891,1771419599278,-475.26533,0.00044514,60]
[405926892,1771419599301,-475.26533,0.00044514,60]
[405926893,1771419599325,-475.26533,0.00044514,60]
[405926894,1771419599348,-475.26533,0.00044514,60]
[405926895,1771419599371,-800.0,0.00044514,31]
[405926896,1771419599394,-800.0,0.00044514,31]
[405926897,1771419599418,-800.0,0.00044514,31]
[405926898,1771419599440,-800.0,0.00044514,31]
[405926899,1771419599463,-800.0,0.00044514,31]
[405926900,1771419599486,-800.0,0.00044514,31]
[405926901,1771419599510,-800.0,0.00044514,31]
[405926902,1771419599532,-800.0,0.00044514,31]
[405926903,1771419599555,-800.0,0.00044514,31]
[405926904,1771419599581,-800.0,0.00044514,31]
[405926905,1771419599604,-800.0,0.00044514,31]
[405926906,1771419599627,-800.0,0.00044514,31]
[405926907,1771419599649,-200.0,0.00044514,120]
[405926908,1771419599835,-200.0,0.00044514,120]
[405926909,1771419599859,-200.0,0.00044514,120]
[405926910,1771419599881,-200.0,0.00044514,120]
[405926911,1771419599904,-800.0,0.00044514,31]
[405926912,1771419599926,-800.0,0.00044514,31]
[405926913,1771419599950,-800.0,0.00044514,31]
[405926914,1771419599974,-800.0,0.00044514,31]
[405926915,1771419599996,-800.0,0.00044514,31]
[405926916,1771419600020,-800.0,0.00044514,31]
[405926917,1771419600043,-800.0,0.00044514,31]
[405926918,1771419600070,-800.0,0.00044514,31]
[405926919,1771419600094,-800.0,0.00044514,31]
[405926920,1771419600119,-200.0,0.00044514,120]
[405926921,1771419600144,-200.0,0.00044514,120]
[405926922,1771419600171,-200.0,0.00044514,120]
[405926923,1771419600196,-200.0,0.00044514,120]
[405926924,1771419600222,-200.0,0.00044514,120]
[405926925,1771419600247,-200.0,0.00044514,120]
[405926926,1771419600272,-200.0,0.00044514,120]
[405926927,1771419600297,-150.02,0.00044514,120]
[405926928,1771419600326,-337.02,0.00044514,120]
[405926929,1771419600358,-338.0,0.00044514,30]
[405926930,1771419600382,-338.0,0.00044514,120]
[405926931,1771419600408,-223.9,0.00044514,120]
[405926932,1771419600433,-800.0,0.00044514,31]
[405926933,1771419600458,-800.0,0.00044514,31]
[405926934,1771419600481,-800.0,0.00044514,31]
[405926935,1771419600504,-800.0,0.00044514,31]
[405926936,1771419600528,-800.0,0.00044514,31]
[405926937,1771419600551,-800.0,0.00044514,31]
[405926938,1771419600573,-800.0,0.00044514,31]
[405926939,1771419600597,-800.0,0.00044514,31]
[405926940,1771419600620,-800.0,0.00044514,31]
[405926941,1771419600643,-800.0,0.00044514,31]
[405926942,1771419600667,-800.0,0.00044514,31]
[405926943,1771419600690,-800.0,0.00044514,31]
[405926944,1771419600711,-800.0,0.00044514,31]
[405926945,1771419600734,-5000.0,0.00044514,60]
[405926946,1771419600756,-800.0,0.00044514,31]
[405926947,1771419600779,-800.0,0.00044514,31]
[405926948,1771419600801,-800.0,0.00044514,31]
[405926949,1771419600823,-200.0,0.00044514,120]
[405926950,1771419600846,-218.34514581,0.00044514,120]
[405926951,1771419600870,-1850.0,0.00044514,120]
[405926952,1771419600894,-2100.0,0.00044514,120]
[405926953,1771419600917,-505.0,0.00044514,120]
[405926954,1771419600940,-1880.0,0.00044514,120]
[405926955,1771419600967,-2100.0,0.00044514,120]
[405926956,1771419600990,-2850.0,0.00044514,120]
[405926957,1771419601013,-1074.82,0.00044514,120]
[405926958,1771419601037,-572.2318425,0.00044514,120]
[405926959,1771419601061,-545.91930199,0.00044514,30]
[405926960,1771419601088,-408.16561558,0.00044514,30]
[405926961,1771419601112,-1999.999995,0.00044514,120]
[405926962,1771419601134,-1042.50321881,0.00044514,120]
[405926963,1771419601159,-1402.81734162,0.00044514,120]
[405926964,1771419601181,-320.8749566,0.00044514,120]
[405926965,1771419601203,-222.35333997,0.00044514,30]
[405926966,1771419601225,-193.78276432,0.00044514,120]
[405926967,1771419601247,-376.2368809,0.00044514,30]
[405926968,1771419601269,-503.59145122,0.00044514,120]
[405926969,1771419601291,-443.62321656,0.00044514,120]
[405926970,1771419601314,-185.74966885,0.00044514,120]
[405926971,1771419601336,-815.44782824,0.00044514,120]
[405926972,1771419601358,-176.18649485,0.00044514,120]
[405926973,1771419601380,-257.12374976,0.00044514,120]
[405926974,1771419601401,-266.26860488,0.00044514,120]
[405926975,1771419601424,-416.56915931,0.00044514,120]
[405926976,1771419601446,-166.73320586,0.00044514,60]
[405926977,1771419601469,-269.0101073,0.00044514,120]
[405926978,1771419601491,-220.67667039,0.00044514,120]
[405926979,1771419601513,-4901.10507849,0.00044514,120]
[405926980,1771419601535,-3737.84316601,0.00044514,120]
[405926981,1771419601557,-285.35413726,0.00044514,30]
[405926982,1771419601580,-197.60966645,0.00044514,120]
[405926983,1771419601602,-303.51899064,0.00044514,120]
[405926984,1771419601624,-520.56473036,0.00044514,120]
[405926985,1771419601647,-181.75410523,0.00044514,120]
[405926986,1771419601670,-555.58983299,0.00044514,120]
[405926987,1771419601692,-563.69750159,0.00044514,120]
[405926988,1771419601715,-3469.77965611,0.00044514,120]
[405926989,1771419601738,-351.65143487,0.00044514,120]
[405926990,1771419601762,-197.99413228,0.00044514,120]
[405926991,1771419601784,-276.24497732,0.00044514,120]
[405926992,1771419601806,-485.03036653,0.00044514,60]
[405926993,1771419601829,-480.9011909,0.00044514,120]
[405926994,1771419601852,-497.15178742,0.00044514,30]
[405926995,1771419601874,-500.0,0.00044514,120]
[405926996,1771419601897,-1638.87481264,0.00044514,120]
[405926997,1771419601919,-319.20946826,0.00044514,120]
[405926998,1771419601942,-206.86035245,0.00044514,120]
[405926999,1771419601965,-201.46648602,0.00044514,120]
[405927000,1771419601989,-484.60776229,0.00044514,120]
[405927001,1771419602012,-2102.0555695,0.00044514,120]
[405927002,1771419602036,-2126.5727367,0.00044514,120]
[405927003,1771419602059,-1000.0,0.00044514,120]
[405927004,1771419602084,-1150.0,0.00044514,120]
[405927005,1771419602108,-1000.0,0.00044514,120]
[405927006,1771419602131,-1000.0,0.00044514,120]
[405927007,1771419602155,-1000.0,0.00044514,120]
[405927008,1771419602179,-2000.0,0.00044514,120]
[405927009,1771419602202,-2000.0,0.00044514,120]
[405927010,1771419602225,-930.82156758,0.00044514,120]
[405927011,1771419602248,-857.0,0.00044514,120]
[405927012,1771419602270,-168.24859342,0.00044514,30]
[405927013,1771419602428,-2479.0,0.00044514,120]
[405927014,1771419602452,-929.0,0.00044514,120]
[405927015,1771419602474,-577340.43822396,0.00044514,30]
[405927016,1771419602497,-53060.79064213,0.00044514,30]
[405927017,1771419602519,-14658.62636319,0.00044514,30]
[405927018,1771419602541,-20752.92472054,0.00044514,30]
[405927019,1771419602564,-105023.64914546,0.00044514,30]
[405927020,1771419602587,-44993.79495151,0.00044514,30]
[405927021,1771419602610,-204649.55007096,0.00044514,30]
[405927022,1771419602634,-20938.33180055,0.00044514,30]
[405927023,1771419602657,-11814.66982438,0.00044514,30]
[405927024,1771419602679,-26295.42604455,0.00044514,30]
[405927025,1771419602702,-811081.47508939,0.00044514,30]
[405927026,1771419602726,-723247.33365392,0.00044514,30]
[405927027,1771419602748,-343.87541159,0.00044514,120]
[405927028,1771419602771,-2608.17488921,0.00044514,120]
[405927029,1771419602794,-150.0,0.00044514,30]
[405927030,1771419602816,-1316.53251194,0.00044514,120]
[405927031,1771419602839,-3544.90869924,0.00044514,120]
[405927032,1771419602861,-150.0,0.00044514,120]
[405927033,1771419602885,-50000.0,0.00044514,53]
[405927034,1771419602911,-50000.0,0.00044514,50]
[405927035,1771419602935,-50000.0,0.00044514,56]
[405927036,1771419602959,-50000.0,0.00044514,57]
[405927037,1771419602983,-50000.0,0.00044514,58]
[405927038,1771419603007,-182.64,0.00044514,120]
[405927039,1771419603030,-182.64,0.00044514,120]
[405927040,1771419603053,-182.65,0.00044514,120]
[405927041,1771419603079,-712.03,0.00044514,120]
[405927042,1771419603103,-674535.87592705,0.00044514,120]
[405927043,1771419603126,-7070.86240173,0.00044514,120]
[405927044,1771419603153,-1000.0,0.00044514,31]
[405927045,1771419603178,-500.0,0.00044514,30]
[405927046,1771419603203,-500.0,0.00044514,30]
[405927047,1771419603227,-500.0,0.00044514,30]
[405927048,1771419603251,-11000.0,0.00044514,60]
[405927049,1771419603274,-672776.2277704,0.00044514,30]
[405927050,1771419603299,-254.0,0.00044514,30]
[405927051,1771419603322,-10122.5705802,0.00044514,120]
[405927052,1771419603346,-305.7878978,0.00044514,120]
[405927053,1771419603369,-1549.09,0.00044514,120]
[405927054,1771419603392,-401789.99320917,0.00044514,40]
[405927055,1771419603416,-1363.13255812,0.00044514,120]
[405927056,1771419603441,-151.34564424,0.00044514,30]
[405927057,1771419603465,-151.96068019,0.00044514,120]
[405927058,1771419603490,-1131.86046588,0.00044514,120]
[405927059,1771419603514,-10839.51032214,0.00044514,30]
[405927060,1771419603538,-254.39978321,0.00044514,120]
[405927061,1771419603561,-601.91736807,0.00044514,120]
[405927062,1771419603585,-50000.0,0.00044514,70]
[405927063,1771419603609,-1687.5,0.00044514,120]
[405927064,1771419603632,-5000.0,0.00044514,120]
[405927065,1771419603655,-458.38462301,0.00044514,120]
[405927066,1771419603681,-13397.69,0.00044514,30]
[405927067,1771419603704,-831710.23538595,0.00044514,30]
[405927068,1771419603729,-9636.53212662,0.00044514,120]
[405927069,1771419603754,-12904.86650084,0.00044514,120]
[405927070,1771419603780,-25000.0,0.00044514,30]
[405927071,1771419603807,-50000.0,0.00044514,51]
[405927072,1771419603831,-296.23070051,0.00044514,120]
[405927073,1771419603854,-1335.5,0.00044514,120]
[405927074,1771419603879,-2341.35429614,0.00044514,120]
[405927075,1771419603902,-5000.0,0.00044514,30]
[405927076,1771419603927,-1900.0,0.00044514,36]
[405927077,1771419603950,-6827.72162012,0.00044514,30]
[405927078,1771419603974,-255000.0,0.00044514,120]
[405927079,1771419603997,-1000.0,0.00044514,120]